Workbook

Sheet Hinweise
A1: Geschäftsgang 5
A3: Voraussetzungen
A4: Um den Geschäftsgang buchen zu können müssen Sie Kenntnisse über die folgenden Lehrninhalte haben:
A5: Buchungen auf Bestandskonten
A6: Buchungen auf Erfolgskonten
A7: Bestandsveränderungen
A8: Umsatzsteuer
A9: Buchung von Bezugskosten
A10: Buchung von Nachlässen und Erlösberichtigungen
A12: Vorgehensweise
A13: 1. Wählen Sie die Tabelle "Grundbuch".
A15: 2. Buchen Sie die Geschäftsvorfälle
A16: entweder durch Direkteingabe in die entsprechenden Felder des Grundbuchs (Kontennummern und Beträge)
A17: oder durch Aufruf von Buchungsfenstern. (Klicken Sie dazu jeweils auf die Schaltfläche "Buchung" und beenden
A18: Sie die Eingabe mit "OK".)
A19: Die Kontennummern sind vierstellig anzugeben. (siehe Kontenplan). Bei zusammengesetzten Buchungssätzen
A20: sind die Buchungen nach der Höhe der Beträge geordnet vorzunehmen.
A22: 3. Sie können sich den Kontenplan mit Kontennummern jederzeit durch Klick auf den
A23: entsprechenden Button anzeigen lassen.
A25: 4. Die Richtigkeit Ihrer Buchungen wird bestätigt oder Sie werden auf
A26: Fehler hingewiesen. (Ohne Buchung werden Fehler angezeigt.)
A28: 5. Hauptbuch, Gewinn und Verlust und Bilanzbuch werden automatisch erstellt.

Sheet Grundbuch
A2: Geschäftsvorfälle
A3: Grundbuch
G4: 0.19
A6: 1. | B6: Banküberweisung der Umsatzsteuer-Zahllast | E6: 4000 | F6: =IF(AND(B10="4800",E10="2800"),"Die Konten sind richtig!","Mindestens ein Konto ist falsch!") -> Mindestens ein Konto ist falsch!
A7: Geschäftsvorfall | F7: =IF(AND(D10=E6,G10=E6),"Die Beträge sind richtig!","Mindestens ein Betrag ist falsch!") -> Mindestens ein Betrag ist falsch!
F8: =IF(AND(F6="Die Konten sind richtig!",F7="Die Beträge sind richtig!"),"Alles richtig!","Es sind noch Fehler vorhanden!") -> Es sind noch Fehler vorhanden!
B9: Soll | C9: Konto | D9: € | E9: Haben | F9: Konto | G9: €
A10: Buchungssatz | C10: =IF(B10="","",VLOOKUP(B10,Kontenplan!$A$4:$B$33,2)) ->  | F10: =IF(E10="","",VLOOKUP(E10,Kontenplan!$A$4:$B$33,2)) -> 
A13: 2. | B13: Zieleinkauf von Rohstoffen, | D13: netto | E13: 8000 | F13: =IF(AND(B17="2000",B18="2600",E17="4400"),"Die Konten sind richtig!","Mindestens ein Konto ist falsch!") -> Mindestens ein Konto ist falsch!
A14: Geschäftsvorfall | D14: USt. | E14: =E13*G4 -> 1520 | F14: =IF(AND(D17=E13,D18=E14,G17=E15),"Die Beträge sind richtig!","Mindestens ein Betrag ist falsch!") -> Mindestens ein Betrag ist falsch!
D15: brutto | E15: =SUM(E13:E14) -> 9520 | F15: =IF(AND(F13="Die Konten sind richtig!",F14="Die Beträge sind richtig!"),"Alles richtig!","Es sind noch Fehler vorhanden!") -> Es sind noch Fehler vorhanden!
B16: Soll | C16: Konto | D16: € | E16: Haben | F16: Konto | G16: €
A17: Buchungssatz | C17: =IF(B17="","",VLOOKUP(B17,Kontenplan!$A$4:$B$33,2)) ->  | F17: =IF(E17="","",VLOOKUP(E17,Kontenplan!$A$4:$B$33,2)) -> 
C18: =IF(B18="","",VLOOKUP(B18,Kontenplan!$A$4:$B$33,2)) ->  | F18: =IF(E18="","",VLOOKUP(E18,Kontenplan!$A$4:$B$33,2)) -> 
A20: 3. | B20: Eingangsfracht für den Rohstoffeinkauf aus Geschäftsvorfall 2 bar, | D20: netto | E20: 100 | F20: =IF(AND(B24="2001",B25="2600",E24="2880"),"Die Konten sind richtig!","Mindestens ein Konto ist falsch!") -> Mindestens ein Konto ist falsch!
A21: Geschäftsvorfall | D21: USt. | E21: =E20*G4 -> 19 | F21: =IF(AND(D24=E20,D25=E21,G24=E22),"Die Beträge sind richtig!","Mindestens ein Betrag ist falsch!") -> Mindestens ein Betrag ist falsch!
D22: brutto | E22: =SUM(E20:E21) -> 119 | F22: =IF(AND(F20="Die Konten sind richtig!",F21="Die Beträge sind richtig!"),"Alles richtig!","Es sind noch Fehler vorhanden!") -> Es sind noch Fehler vorhanden!
B23: Soll | C23: Konto | D23: € | E23: Haben | F23: Konto | G23: €
A24: Buchungssatz | C24: =IF(B24="","",VLOOKUP(B24,Kontenplan!$A$4:$B$33,2)) ->  | F24: =IF(E24="","",VLOOKUP(E24,Kontenplan!$A$4:$B$33,2)) -> 
C25: =IF(B25="","",VLOOKUP(B25,Kontenplan!$A$4:$B$33,2)) ->  | F25: =IF(E25="","",VLOOKUP(E25,Kontenplan!$A$4:$B$33,2)) -> 
A27: 4. | B27: Barkauf eines Computers, | D27: netto | E27: 1400 | F27: =IF(AND(B31="0800",B32="2600",E31="2880"),"Die Konten sind richtig!","Mindestens ein Konto ist falsch!") -> Mindestens ein Konto ist falsch!
A28: Geschäftsvorfall | D28: USt. | E28: =E27*G4 -> 266 | F28: =IF(AND(D31=E27,D32=E28,G31=E29),"Die Beträge sind richtig!","Mindestens ein Betrag ist falsch!") -> Mindestens ein Betrag ist falsch!
D29: brutto | E29: =SUM(E27:E28) -> 1666 | F29: =IF(AND(F27="Die Konten sind richtig!",F28="Die Beträge sind richtig!"),"Alles richtig!","Es sind noch Fehler vorhanden!") -> Es sind noch Fehler vorhanden!
B30: Soll | C30: Konto | D30: € | E30: Haben | F30: Konto | G30: €
A31: Buchungssatz | C31: =IF(B31="","",VLOOKUP(B31,Kontenplan!$A$4:$B$33,2)) ->  | F31: =IF(E31="","",VLOOKUP(E31,Kontenplan!$A$4:$B$33,2)) -> 
C32: =IF(B32="","",VLOOKUP(B32,Kontenplan!$A$4:$B$33,2)) ->  | F32: =IF(E32="","",VLOOKUP(E32,Kontenplan!$A$4:$B$33,2)) -> 
A34: 5. | B34: Banküberweisung der Liefererrechnung aus Geschäftsvorfall 2 abzüglich 2% Skonto. (Nettobuchung) | D34: Lastschrift | E34: =ROUND(E15-(E15*2%),2) -> 9329.6 | F34: =IF(AND(B39="4400",E39="2800",E40="2002",E41="2600"),"Die Konten sind richtig!","Mindestens ein Konto ist falsch!") -> Mindestens ein Konto ist falsch!
D35: Skonto | E35: =ROUND(E13*2%,2) -> 160
A36: Geschäftsvorfall | D36: USt. | E36: =ROUND(E35*G4,2) -> 30.4 | F36: =IF(AND(D39=E37,G39=E34,G40=E35,G41=E36),"Die Beträge sind richtig!","Mindestens ein Betrag ist falsch!") -> Mindestens ein Betrag ist falsch!
D37: Bruttobetrag | E37: =SUM(E34:E36) -> 9520 | F37: =IF(AND(F34="Die Konten sind richtig!",F36="Die Beträge sind richtig!"),"Alles richtig!","Es sind noch Fehler vorhanden!") -> Es sind noch Fehler vorhanden!
B38: Soll | C38: Konto | D38: € | E38: Haben | F38: Konto | G38: €
A39: Buchungssatz | C39: =IF(B39="","",VLOOKUP(B39,Kontenplan!$A$4:$B$33,2)) ->  | F39: =IF(E39="","",VLOOKUP(E39,Kontenplan!$A$4:$B$33,2)) -> 
C40: =IF(B40="","",VLOOKUP(B40,Kontenplan!$A$4:$B$33,2)) ->  | F40: =IF(E40="","",VLOOKUP(E40,Kontenplan!$A$4:$B$33,2)) -> 
C41: =IF(B41="","",VLOOKUP(B41,Kontenplan!$A$4:$B$33,2)) ->  | F41: =IF(E41="","",VLOOKUP(E41,Kontenplan!$A$4:$B$33,2)) -> 
A43: 6. | B43: Zieleinkauf von Hilfsstoffen, | D43: netto | E43: 2000 | F43: =IF(AND(B47="2020",B48="2600",E47="4400"),"Die Konten sind richtig!","Mindestens ein Konto ist falsch!") -> Mindestens ein Konto ist falsch!
A44: Geschäftsvorfall | D44: USt. | E44: =E43*G4 -> 380 | F44: =IF(AND(D47=E43,D48=E44,G47=E45),"Die Beträge sind richtig!","Mindestens ein Betrag ist falsch!") -> Mindestens ein Betrag ist falsch!
D45: brutto | E45: =SUM(E43:E44) -> 2380 | F45: =IF(AND(F43="Die Konten sind richtig!",F44="Die Beträge sind richtig!"),"Alles richtig!","Es sind noch Fehler vorhanden!") -> Es sind noch Fehler vorhanden!
B46: Soll | C46: Konto | D46: € | E46: Haben | F46: Konto | G46: €
A47: Buchungssatz | C47: =IF(B47="","",VLOOKUP(B47,Kontenplan!$A$4:$B$33,2)) ->  | F47: =IF(E47="","",VLOOKUP(E47,Kontenplan!$A$4:$B$33,2)) -> 
C48: =IF(B48="","",VLOOKUP(B48,Kontenplan!$A$4:$B$33,2)) ->  | F48: =IF(E48="","",VLOOKUP(E48,Kontenplan!$A$4:$B$33,2)) -> 
A50: 7. | B50: Banküberweisung der Liefererrechnung aus Geschäftsvorfall 6 abzüglich 3% Skonto. (Nettobuchung) | D50: Lastschrift | E50: =ROUND(E45-(E45*3%),2) -> 2308.6 | F50: =IF(AND(B55="4400",E55="2800",E56="2022",E57="2600"),"Die Konten sind richtig!","Mindestens ein Konto ist falsch!") -> Mindestens ein Konto ist falsch!
D51: Skonto | E51: =ROUND(E43*3%,2) -> 60
A52: Geschäftsvorfall | D52: USt. | E52: =ROUND(E51*G4,2) -> 11.4 | F52: =IF(AND(D55=E53,G55=E50,G56=E51,G57=E52),"Die Beträge sind richtig!","Mindestens ein Betrag ist falsch!") -> Mindestens ein Betrag ist falsch!
D53: Bruttobetrag | E53: =SUM(E50:E52) -> 2380 | F53: =IF(AND(F50="Die Konten sind richtig!",F52="Die Beträge sind richtig!"),"Alles richtig!","Es sind noch Fehler vorhanden!") -> Es sind noch Fehler vorhanden!
B54: Soll | C54: Konto | D54: € | E54: Haben | F54: Konto | G54: €
A55: Buchungssatz | C55: =IF(B55="","",VLOOKUP(B55,Kontenplan!$A$4:$B$33,2)) ->  | F55: =IF(E55="","",VLOOKUP(E55,Kontenplan!$A$4:$B$33,2)) -> 
C56: =IF(B56="","",VLOOKUP(B56,Kontenplan!$A$4:$B$33,2)) ->  | F56: =IF(E56="","",VLOOKUP(E56,Kontenplan!$A$4:$B$33,2)) -> 
C57: =IF(B57="","",VLOOKUP(B57,Kontenplan!$A$4:$B$33,2)) ->  | F57: =IF(E57="","",VLOOKUP(E57,Kontenplan!$A$4:$B$33,2)) -> 
A59: 8. | B59: Zielverkauf von fertigen Erzeugnissen, | D59: netto | E59: 165000 | F59: =IF(AND(B63="2400",E63="5000",E64="4800"),"Die Konten sind richtig!","Mindestens ein Konto ist falsch!") -> Mindestens ein Konto ist falsch!
A60: Geschäftsvorfall | D60: USt. | E60: =E59*G4 -> 31350 | F60: =IF(AND(D63=E61,G63=E59,G64=E60),"Die Beträge sind richtig!","Mindestens ein Betrag ist falsch!") -> Mindestens ein Betrag ist falsch!
D61: brutto | E61: =SUM(E59:E60) -> 196350 | F61: =IF(AND(F59="Die Konten sind richtig!",F60="Die Beträge sind richtig!"),"Alles richtig!","Es sind noch Fehler vorhanden!") -> Es sind noch Fehler vorhanden!
B62: Soll | C62: Konto | D62: € | E62: Haben | F62: Konto | G62: €
A63: Buchungssatz | C63: =IF(B63="","",VLOOKUP(B63,Kontenplan!$A$4:$B$33,2)) ->  | F63: =IF(E63="","",VLOOKUP(E63,Kontenplan!$A$4:$B$33,2)) -> 
C64: =IF(B64="","",VLOOKUP(B64,Kontenplan!$A$4:$B$33,2)) ->  | F64: =IF(E64="","",VLOOKUP(E64,Kontenplan!$A$4:$B$33,2)) -> 
A66: 9. | B66: Banküberweisung für Löhne, | E66: 20000 | F66: =IF(AND(B70="6200",E70="2800"),"Die Konten sind richtig!","Mindestens ein Konto ist falsch!") -> Mindestens ein Konto ist falsch!
A67: Geschäftsvorfall | F67: =IF(AND(D70=E66,G70=E66),"Die Beträge sind richtig!","Mindestens ein Betrag ist falsch!") -> Mindestens ein Betrag ist falsch!
F68: =IF(AND(F66="Die Konten sind richtig!",F67="Die Beträge sind richtig!"),"Alles richtig!","Es sind noch Fehler vorhanden!") -> Es sind noch Fehler vorhanden!
B69: Soll | C69: Konto | D69: € | E69: Haben | F69: Konto | G69: €
A70: Buchungssatz | C70: =IF(B70="","",VLOOKUP(B70,Kontenplan!$A$4:$B$33,2)) ->  | F70: =IF(E70="","",VLOOKUP(E70,Kontenplan!$A$4:$B$33,2)) -> 
A73: 10. | B73: Der Kunde begleicht die Rechnung aus Geschäftsvorfall 8 abzüglich 2% Skonto durch Banküberweisung | D73: Gutschrift | E73: =ROUND(E61-(E61*2%),2) -> 192423 | F73: =IF(AND(B78="2800",B79="5001",B80="4800",E78="2400"),"Die Konten sind richtig!","Mindestens ein Konto ist falsch!") -> Mindestens ein Konto ist falsch!
D74: Skonto | E74: =ROUND(E59*2%,2) -> 3300
A75: Geschäftsvorfall | D75: USt. | E75: =ROUND(E74*G4,2) -> 627 | F75: =IF(AND(D78=E73,D79=E74,D80=E75,G78=E76),"Die Beträge sind richtig!","Mindestens ein Betrag ist falsch!") -> Mindestens ein Betrag ist falsch!
D76: Bruttobetrag | E76: =SUM(E73:E75) -> 196350 | F76: =IF(AND(F73="Die Konten sind richtig!",F75="Die Beträge sind richtig!"),"Alles richtig!","Es sind noch Fehler vorhanden!") -> Es sind noch Fehler vorhanden!
B77: Soll | C77: Konto | D77: € | E77: Haben | F77: Konto | G77: €
A78: Buchungssatz | C78: =IF(B78="","",VLOOKUP(B78,Kontenplan!$A$4:$B$33,2)) ->  | F78: =IF(E78="","",VLOOKUP(E78,Kontenplan!$A$4:$B$33,2)) -> 
C79: =IF(B79="","",VLOOKUP(B79,Kontenplan!$A$4:$B$33,2)) ->  | F79: =IF(E79="","",VLOOKUP(E79,Kontenplan!$A$4:$B$33,2)) -> 
C80: =IF(B80="","",VLOOKUP(B80,Kontenplan!$A$4:$B$33,2)) ->  | F80: =IF(E80="","",VLOOKUP(E80,Kontenplan!$A$4:$B$33,2)) -> 
A82: 11. | B82: Zieleinkauf von Betriebsstoffen, | D82: netto | E82: 1000 | F82: =IF(AND(B86="2030",B87="2600",E86="4400"),"Die Konten sind richtig!","Mindestens ein Konto ist falsch!") -> Mindestens ein Konto ist falsch!
A83: Geschäftsvorfall | D83: USt. | E83: =E82*G4 -> 190 | F83: =IF(AND(D86=E82,D87=E83,G86=E84),"Die Beträge sind richtig!","Mindestens ein Betrag ist falsch!") -> Mindestens ein Betrag ist falsch!
D84: brutto | E84: =SUM(E82:E83) -> 1190 | F84: =IF(AND(F82="Die Konten sind richtig!",F83="Die Beträge sind richtig!"),"Alles richtig!","Es sind noch Fehler vorhanden!") -> Es sind noch Fehler vorhanden!
B85: Soll | C85: Konto | D85: € | E85: Haben | F85: Konto | G85: €
A86: Buchungssatz | C86: =IF(B86="","",VLOOKUP(B86,Kontenplan!$A$4:$B$33,2)) ->  | F86: =IF(E86="","",VLOOKUP(E86,Kontenplan!$A$4:$B$33,2)) -> 
C87: =IF(B87="","",VLOOKUP(B87,Kontenplan!$A$4:$B$33,2)) ->  | F87: =IF(E87="","",VLOOKUP(E87,Kontenplan!$A$4:$B$33,2)) -> 
A89: 12. | B89: Wir begleichen die Rechnung des Betriebs- stofflieferanten aus Geschäftsvorfall 11 abzüglich 2% Skonto durch Banküberweisung. | D89: Lastschrift | E89: =ROUND(E84-(E84*2%),2) -> 1166.2 | F89: =IF(AND(B94="4400",E94="2800",E95="2032",E96="2600"),"Die Konten sind richtig!","Mindestens ein Konto ist falsch!") -> Mindestens ein Konto ist falsch!
D90: Skonto | E90: =ROUND(E82*2%,2) -> 20
A91: Geschäftsvorfall | D91: USt. | E91: =ROUND(E90*G4,2) -> 3.8 | F91: =IF(AND(D94=E92,G94=E89,G95=E90,G96=E91),"Die Beträge sind richtig!","Mindestens ein Betrag ist falsch!") -> Mindestens ein Betrag ist falsch!
D92: Bruttobetrag | E92: =SUM(E89:E91) -> 1190 | F92: =IF(AND(F89="Die Konten sind richtig!",F91="Die Beträge sind richtig!"),"Alles richtig!","Es sind noch Fehler vorhanden!") -> Es sind noch Fehler vorhanden!
B93: Soll | C93: Konto | D93: € | E93: Haben | F93: Konto | G93: €
A94: Buchungssatz | C94: =IF(B94="","",VLOOKUP(B94,Kontenplan!$A$4:$B$33,2)) ->  | F94: =IF(E94="","",VLOOKUP(E94,Kontenplan!$A$4:$B$33,2)) -> 
C95: =IF(B95="","",VLOOKUP(B95,Kontenplan!$A$4:$B$33,2)) ->  | F95: =IF(E95="","",VLOOKUP(E95,Kontenplan!$A$4:$B$33,2)) -> 
C96: =IF(B96="","",VLOOKUP(B96,Kontenplan!$A$4:$B$33,2)) ->  | F96: =IF(E96="","",VLOOKUP(E96,Kontenplan!$A$4:$B$33,2)) -> 
A98: 13. | B98: Stoffverbrauch lt. Materialentnahmescheine für | F98: =IF(AND(B103="6000",E103="2000",B104="6020",E104="2020",B105="6030",E105="2030"),"Die Konten sind richtig!","Mindestens ein Konto ist falsch!") -> Mindestens ein Konto ist falsch!
A99: Geschäftsvorfall | C99: - Rohstoffe | E99: 10000
C100: - Hilfsstoffe | E100: 4000 | F100: =IF(AND(D103=E99,D104=E100,D105=E101,G103=E99,G104=E100,G105=E101),"Die Beträge sind richtig!","Mindestens ein Betrag ist falsch!") -> Mindestens ein Betrag ist falsch!
C101: - Betriebsstoffe | E101: 2000 | F101: =IF(AND(F98="Die Konten sind richtig!",F100="Die Beträge sind richtig!"),"Alles richtig!","Es sind noch Fehler vorhanden!") -> Es sind noch Fehler vorhanden!
B102: Soll | C102: Konto | D102: € | E102: Haben | F102: Konto | G102: €
A103: Buchungssatz | C103: =IF(B103="","",VLOOKUP(B103,Kontenplan!$A$4:$B$33,2)) ->  | F103: =IF(E103="","",VLOOKUP(E103,Kontenplan!$A$4:$B$33,2)) -> 
C104: =IF(B104="","",VLOOKUP(B104,Kontenplan!$A$4:$B$33,2)) ->  | F104: =IF(E104="","",VLOOKUP(E104,Kontenplan!$A$4:$B$33,2)) -> 
C105: =IF(B105="","",VLOOKUP(B105,Kontenplan!$A$4:$B$33,2)) ->  | F105: =IF(E105="","",VLOOKUP(E105,Kontenplan!$A$4:$B$33,2)) -> 
A107: Abschlussangaben
A108: A1 | B108: Endbestände lt. Inventur | F108: =IF(AND(B112="8010",E112="2100",B113="8010",E113="2200"),"Die Konten sind richtig!","Mindestens ein Konto ist falsch!") -> Mindestens ein Konto ist falsch!
A109: Abschlussangabe | C109: - Unfertige Erzeugnisse | E109: 15000 | F109: =IF(AND(D112=E109,D113=E110,G112=E109,G113=E110),"Die Beträge sind richtig!","Mindestens ein Betrag ist falsch!") -> Mindestens ein Betrag ist falsch!
C110: - Fertige Erzeugnisse | E110: 6000 | F110: =IF(AND(F108="Die Konten sind richtig!",F109="Die Beträge sind richtig!"),"Alles richtig!","Es sind noch Fehler vorhanden!") -> Es sind noch Fehler vorhanden!
B111: Soll | C111: Konto | D111: € | E111: Haben | F111: Konto | G111: €
A112: Buchungssatz | C112: =IF(B112="","",VLOOKUP(B112,Kontenplan!$A$4:$B$33,2)) ->  | F112: =IF(E112="","",VLOOKUP(E112,Kontenplan!$A$4:$B$33,2)) -> 
C113: =IF(B113="","",VLOOKUP(B113,Kontenplan!$A$4:$B$33,2)) ->  | F113: =IF(E113="","",VLOOKUP(E113,Kontenplan!$A$4:$B$33,2)) -> 
A115: =IF(AND(F8="Alles richtig!",F15="Alles richtig!",F22="Alles richtig!",F29="Alles richtig!",F37="Alles richtig!",F45="Alles richtig!",F53="Alles richtig!",F61="Alles richtig!",F68="Alles richtig!",F76="Alles richtig!",F84="Alles richtig!",F92="Alles richtig!",F101="Alles richtig!",F110="Alles richtig!"),"Super gebucht, die Aufgabe ist gelöst!","Bilden Sie alle Buchungssätze!") -> Bilden Sie alle Buchungssätze!

Sheet Hauptbuch
A1: Hauptbuch
A3: Soll | B3: 0500 Grundstücke und Bauten | J3: Haben
A4: AB | B4: 8000 | E4: =Bilanzbuch!C4 -> 100000 | F4: SB | G4: 8010 | J4: =E4 -> 100000
A6: Soll | B6: 0700 Technische Anlagen und Maschinen | J6: Haben
A7: AB | B7: 8000 | E7: =Bilanzbuch!C5 -> 80000 | F7: SB | G7: 8010 | J7: =E7 -> 80000
A9: Soll | B9: 0800 Betriebs- und Geschäftsausstattung | J9: Haben
A10: AB | B10: 8000 | E10: =Bilanzbuch!C6 -> 20000 | F10: SB | G10: 8010 | J10: =J12 -> 20000
A11: 4. | B11: 2880 | E11: =Grundbuch!D31 -> 0
E12: =SUM(E10:E11) -> 20000 | J12: =E12 -> 20000
A14: Soll | B14: 2000 Rohstoffe | J14: Haben
A15: AB | B15: 8000 | E15: =Bilanzbuch!C7 -> 40000 | F15: 13. | G15: =Grundbuch!B103 ->  | J15: =Grundbuch!G103 -> 0
A16: 2. | B16: 4400 | E16: =Grundbuch!D17 -> 0 | F16: A | G16: 2002 | J16: =E24 -> 0
A17: A | B17: 2001 | E17: =J21 -> 0 | F17: SB | G17: 8010 | J17: =J18-SUM(J15:J16) -> 40000
E18: =SUM(E15:E17) -> 40000 | J18: =E18 -> 40000
A20: Soll | B20: 2001 Bezugskosten (Rohstoffe) | J20: Haben
A21: 3. | B21: 2880 | E21: =Grundbuch!D24 -> 0 | F21: A | G21: 2000 | J21: =E21 -> 0
A23: Soll | B23: 2002 Nachlässe (Rohstoffe) | J23: Haben
A24: A | B24: 2000 | E24: =J24 -> 0 | F24: 5. | G24: 4400 | J24: =Grundbuch!G40 -> 0
A26: Soll | B26: 2020 Hilfsstoffe | J26: Haben
A27: AB | B27: 8000 | E27: =Bilanzbuch!C8 -> 8000 | F27: 13. | G27: 6020 | J27: =Grundbuch!G104 -> 0
A28: 6. | B28: 4400 | E28: =Grundbuch!D47 -> 0 | F28: A | G28: 2022 | J28: =E33 -> 0
F29: SB | G29: 8010 | J29: =J30-SUM(J27:J28) -> 8000
E30: =SUM(E27:E28) -> 8000 | J30: =E30 -> 8000
A32: Soll | B32: 2022 Nachlässe (Hilfsstoffe) | J32: Haben
A33: A | B33: 2020 | E33: =J33 -> 0 | F33: 7. | G33: 4400 | J33: =Grundbuch!G56 -> 0
A35: Soll | B35: 2030 Betriebsstoffe | J35: Haben
A36: AB | B36: 8000 | E36: =Bilanzbuch!C9 -> 3000 | F36: 13. | G36: 6030 | J36: =Grundbuch!G105 -> 0
A37: 11. | B37: 4400 | E37: =Grundbuch!D86 -> 0 | F37: A | G37: 2032 | J37: =E42 -> 0
F38: SB | G38: 8010 | J38: =J39-SUM(J36:J37) -> 3000
E39: =SUM(E36:E38) -> 3000 | J39: =E39 -> 3000
A41: Soll | B41: 2032 Nachlässe (Betriebsstoffe) | J41: Haben
A42: A | B42: 2030 | E42: =J42 -> 0 | F42: 12. | G42: 4400 | J42: =Grundbuch!G95 -> 0
A44: Soll | B44: 2100 Unfertige Erzeugnisse | J44: Haben
A45: AB | B45: 8000 | E45: =Bilanzbuch!C10 -> 25000 | F45: SB | G45: 8010 | J45: =Grundbuch!G112 -> 0
A46: =IF(E45<J45,"A","") ->  | B46: =IF(E45<J45,5200,"") ->  | E46: =IF(E45<J45,E47-E45,"") ->  | F46: =IF(E45>J45,"A","") -> A | G46: =IF(J45<E45,5200,"") -> 5200 | J46: =IF($E$45>$J$45,J47-J45,"") -> 25000
E47: =IF($E$45>$J$45,$E$45,$J$45) -> 25000 | J47: =IF($E$45>$J$45,$E$45,$J$45) -> 25000
A49: Soll | B49: 2200 Fertige Erzeugnisse | J49: Haben
A50: AB | B50: 8000 | E50: =Bilanzbuch!C11 -> 8000 | F50: SB | G50: 8010 | J50: =Grundbuch!G113 -> 0
A51: =IF(E50<J50,"A","") ->  | B51: =IF(E50<J50,5200,"") ->  | E51: =IF(E50<E52,E52-E50,"") ->  | F51: =IF(J50<E50,"A","") -> A | G51: =IF(J50<E50,5200,"") -> 5200 | J51: =IF(J50<E50,J52-J50,"") -> 8000
E52: =IF(E50>J50,E50,J50) -> 8000 | J52: =IF(E50>J50,E50,J50) -> 8000
A54: Soll | B54: 2400 Forderungen aus Lieferungen und Leistungen | J54: Haben
A55: AB | B55: 8000 | E55: =Bilanzbuch!C12 -> 15000 | F55: 10. | G55: 2800 | H55: 5001 | I55: 4800 | J55: =Grundbuch!G78 -> 0
A56: 8. | B56: 5000 | C56: 4800 | E56: =Grundbuch!D63 -> 0 | F56: SB | G56: 8010 | J56: =J57-J55 -> 15000
E57: =SUM(E55:E56) -> 15000 | J57: =E57 -> 15000
A59: Soll | B59: 2600 Vorsteuer | J59: Haben
A60: 2. | B60: 4400 | E60: =Grundbuch!D18 -> 0 | F60: 5. | G60: 4400 | J60: =Grundbuch!G41 -> 0
A61: 3. | B61: 2880 | E61: =Grundbuch!D25 -> 0 | F61: 7. | G61: 4400 | J61: =Grundbuch!G57 -> 0
A62: 4. | B62: 2880 | E62: =Grundbuch!D32 -> 0 | F62: 12. | G62: 4400 | J62: =Grundbuch!G96 -> 0
A63: 6. | B63: 4400 | E63: =Grundbuch!D48 -> 0 | F63: A | G63: 4800 | J63: =J65-SUM(J60:J62) -> 0
A64: 11. | B64: 4400 | E64: =Grundbuch!D87 -> 0
E65: =SUM(E60:E64) -> 0 | J65: =E65 -> 0
A67: Soll | B67: 2800 Kreditinstitute/Bank | J67: Haben
A68: AB | B68: 8000 | E68: =Bilanzbuch!C13 -> 75000 | F68: 1. | G68: 4800 | J68: =Grundbuch!G10 -> 0
A69: 10. | B69: 2400 | E69: =Grundbuch!D78 -> 0 | F69: 5. | G69: 4400 | J69: =Grundbuch!G39 -> 0
F70: 7. | G70: 4400 | J70: =Grundbuch!G55 -> 0
F71: 9. | G71: 6200 | J71: =Grundbuch!G70 -> 0
F72: 12. | G72: 4400 | J72: =Grundbuch!G94 -> 0
F73: SB | G73: 8010 | J73: =J74-SUM(J68:J72) -> 75000
E74: =SUM(E68:E73) -> 75000 | J74: =E74 -> 75000
A76: Soll | B76: 2880 Kasse | J76: Haben
A77: AB | B77: 8000 | E77: =Bilanzbuch!C14 -> 6000 | F77: 3. | G77: 2001 | H77: 2600 | J77: =Grundbuch!G24 -> 0
F78: 4. | G78: 0800 | H78: 2600 | J78: =Grundbuch!G31 -> 0
F79: SB | G79: 8010 | J79: =J80-SUM(J77:J78) -> 6000
E80: =SUM(E77:E79) -> 6000 | J80: =E80 -> 6000
A82: Soll | B82: 3000 Eigenkapital | J82: Haben
A83: A | B83: 8020 | E83: =IF(GuV!F9>0,GuV!F9,0) -> 33000 | F83: AB | G83: 8000 | J83: =Bilanzbuch!F4 -> 356000
A84: SB | B84: 8010 | E84: =E85-E83 -> 323000 | F84: A | G84: 8020 | J84: =IF(GuV!C9>0,GuV!C9,0) -> 0
E85: =J85 -> 356000 | J85: =SUM(J83:J84) -> 356000
A87: Soll | B87: 4400 Verbindlichkeiten aus Lieferungen und Leistungen | J87: Haben
A88: 5. | B88: 2800 | C88: 2002 | D88: 2600 | E88: =Grundbuch!D39 -> 0 | F88: AB | G88: 8000 | J88: =Bilanzbuch!F5 -> 20000
A89: 7. | B89: 2800 | C89: 2022 | D89: 2600 | E89: =Grundbuch!D55 -> 0 | F89: 2. | G89: =Grundbuch!B17 ->  | H89: =Grundbuch!B18 ->  | J89: =Grundbuch!G17 -> 0
A90: 12. | B90: 2800 | C90: 2032 | D90: 2600 | E90: =Grundbuch!D94 -> 0 | F90: 6. | G90: 2020 | H90: 2600 | J90: =Grundbuch!G47 -> 0
A91: SB | B91: 8010 | E91: =E92-SUM(E88:E90) -> 20000 | F91: 11. | G91: 2030 | H91: 2600 | J91: =Grundbuch!G86 -> 0
E92: =J92 -> 20000 | J92: =SUM(J88:J91) -> 20000
A94: Soll | B94: 4800 Umsatzsteuer | J94: Haben
A95: 1. | B95: =Grundbuch!E10 ->  | E95: =Grundbuch!D10 -> 0 | F95: AB | G95: 8000 | J95: =Bilanzbuch!F6 -> 4000
A96: 10. | B96: 2400 | E96: =Grundbuch!D80 -> 0 | F96: 8. | G96: 2400 | J96: =Grundbuch!G64 -> 0
A97: A. | B97: 2600 | E97: =J63 -> 0
A98: SB | B98: 8010 | E98: =E99-SUM(E95:E97) -> 4000
E99: =J99 -> 4000 | J99: =SUM(J95:J98) -> 4000
A101: Soll | B101: 5000 Umsatzerlöse | J101: Haben
A102: A | B102: 5001 | E102: =J107 -> 0 | F102: 8. | G102: =Grundbuch!B63 ->  | J102: =Grundbuch!G63 -> 0
A103: A | B103: 8020 | E103: =E104-E102 -> 0
E104: =J104 -> 0 | J104: =SUM(J102:J103) -> 0
A106: Soll | B106: 5001 Erlösberichtigungen | J106: Haben
A107: 10. | B107: 2400 | E107: =Grundbuch!D79 -> 0 | F107: A | G107: 5000 | J107: =E107 -> 0
A109: Soll | B109: 5200 Bestandsveränderunen | J109: Haben
A110: =IF(J45<E45,"A","") -> A | B110: =IF(J45<E45,2100,"") -> 2100 | E110: =IF(J45<E45,J46,0) -> 25000 | F110: =IF(E45<J45,"A","") ->  | G110: =IF(E45<J45,2100,"") ->  | J110: =IF(E45<J45,E46,0) -> 0
A111: =IF(J50<E50,"A","") -> A | B111: =IF(J50<E50,2200,"") -> 2200 | E111: =IF(J50<E50,J51,0) -> 8000 | F111: =IF(E50<J50,"A","") ->  | G111: =IF(E50<J50,2200,"") ->  | J111: =IF(E50<J50,E51,0) -> 0
A112: =IF(($J$110+$J$111)>($E$110+$E$111),"A","") ->  | B112: =IF(($J$110+$J$111)>($E$110+$E$111),"8020","") ->  | E112: =IF(($J$110+$J$111)>($E$110+$E$111),($J$110+$J$111)-(E110+E111),0) -> 0 | F112: =IF(($J$110+$J$111)<($E$110+$E$111),"A","") -> A | G112: =IF(($J$110+$J$111)<($E$110+$E$111),"8020","") -> 8020 | J112: =IF(($J$110+$J$111)<($E$110+$E$111),($E$110+$E$111)-(J110+J111),0) -> 33000
E113: =IF(($J$110+$J$111)>($E$110+$E$111),($J$110+$J$111),($E$110+$E$111)) -> 33000 | J113: =IF(($J$110+$J$111)>($E$110+$E$111),($J$110+$J$111),($E$110+$E$111)) -> 33000
A115: Soll | B115: 6000 Aufwendungen für Rohstoffe | J115: Haben
A116: 13. | B116: =Grundbuch!E103 ->  | E116: =Grundbuch!D103 -> 0 | F116: A | G116: 8020 | J116: =E116 -> 0
A118: Soll | B118: 6020 Aufwendungen für Hilfsstoffe | J118: Haben
A119: 5. | B119: 2020 | E119: =Grundbuch!D104 -> 0 | F119: A | G119: 8020 | J119: =E119 -> 0
A121: Soll | B121: 6030 Aufwendungen für Betriebsstoffe | J121: Haben
A122: 5. | B122: 2030 | E122: =Grundbuch!D105 -> 0 | F122: A | G122: 8020 | J122: =E122 -> 0
A124: Soll | B124: 6200 Löhne | J124: Haben
A125: 9. | B125: 2800 | E125: =Grundbuch!D70 -> 0 | F125: A | G125: 8020 | J125: =E125 -> 0

Sheet GuV
A1: Gewinn- und Verlustrechnung
A3: Soll | B3: 8020 Gewinn und Verlust | F3: Haben
A4: 5200 | B4: =VLOOKUP(A4,Kontenplan!$A$4:$B$33,2) -> Bestandsveränderungen | C4: =IF(Hauptbuch!J112>0,Hauptbuch!J112,0) -> 33000 | D4: 5000 | E4: =VLOOKUP(D4,Kontenplan!$A$4:$B$33,2) -> Umsatzerlöse | F4: =Hauptbuch!E103 -> 0
A5: 6000 | B5: =VLOOKUP(A5,Kontenplan!$A$4:$B$33,2) -> Aufwendungen für Rohstoffe | C5: =Hauptbuch!J116 -> 0 | D5: 5200 | E5: =VLOOKUP(D5,Kontenplan!$A$4:$B$33,2) -> Bestandsveränderungen | F5: =IF(Hauptbuch!E112>0,Hauptbuch!E112,0) -> 0
A6: 6020 | B6: =VLOOKUP(A6,Kontenplan!$A$4:$B$33,2) -> Aufwendungen für Hilfsstoffe | C6: =Hauptbuch!J119 -> 0
A7: 6030 | B7: =VLOOKUP(A7,Kontenplan!$A$4:$B$33,2) -> Aufwendungen für Betriebsstoffe | C7: =Hauptbuch!J122 -> 0
A8: 6200 | B8: =VLOOKUP(A8,Kontenplan!$A$4:$B$33,2) -> Löhne | C8: =Hauptbuch!J125 -> 0
A9: =IF(SUM($F$4:$F$7)>SUM($C$4:$C$8),"3000","") ->  | B9: =IF(SUM($F$4:$F$7)>SUM($C$4:$C$8),"Eigenkapital","") ->  | C9: =IF(SUM($F$4:$F$7)>SUM($C$4:$C$8),SUM($F$4:$F$7)-SUM($C$4:$C$8),0) -> 0 | D9: =IF(SUM($F$4:$F$7)>SUM($C$4:$C$8),"","3000") -> 3000 | E9: =IF(SUM($F$4:$F$7)>SUM($C$4:$C$8),"","Eigenkapital") -> Eigenkapital | F9: =IF(SUM($C$4:$C$8)>SUM($F$4:$F$5),SUM($C$4:$C$8)-SUM($F$4:$F$5),0) -> 33000
C10: =IF(SUM($F$4:$F$7)>SUM($C$4:$C$8),SUM($F$4:$F$7),SUM($C$4:$C$8)) -> 33000 | F10: =SUM(F4:F9) -> 33000

Sheet Bilanzbuch
A1: Bilanzbuch
A3: Aktiva | B3: 8000 Eröffnungsbilanz | F3: Passiva
A4: 0500 | B4: =VLOOKUP(A4,Kontenplan!$A$4:$B$33,2) -> Grundstücke und Bauten | C4: 100000 | D4: 3000 | E4: =VLOOKUP(D4,Kontenplan!$A$4:$B$33,2) -> Eigenkapital | F4: =F15-SUM(F5:F14) -> 356000
A5: 0700 | B5: =VLOOKUP(A5,Kontenplan!$A$4:$B$33,2) -> Technische Anlagen und Maschinen | C5: 80000 | D5: 4400 | E5: =VLOOKUP(D5,Kontenplan!$A$4:$B$33,2) -> Verbindlichkeiten a.L.u.L. | F5: 20000
A6: 0800 | B6: =VLOOKUP(A6,Kontenplan!$A$4:$B$33,2) -> Beriebs- und Geschäftsausstattung | C6: 20000 | D6: 4800 | E6: =VLOOKUP(D6,Kontenplan!$A$4:$B$33,2) -> Umsatzsteuer | F6: 4000
A7: 2000 | B7: =VLOOKUP(A7,Kontenplan!$A$4:$B$33,2) -> Rohstoffe | C7: 40000
A8: 2020 | B8: =VLOOKUP(A8,Kontenplan!$A$4:$B$33,2) -> Hilfsstoffe | C8: 8000
A9: 2030 | B9: =VLOOKUP(A9,Kontenplan!$A$4:$B$33,2) -> Betriebsstoffe | C9: 3000
A10: 2100 | B10: =VLOOKUP(A10,Kontenplan!$A$4:$B$33,2) -> Unfertige Erzeugnisse | C10: 25000
A11: 2200 | B11: =VLOOKUP(A11,Kontenplan!$A$4:$B$33,2) -> Fertige Erzeugnisse | C11: 8000
A12: 2400 | B12: =VLOOKUP(A12,Kontenplan!$A$4:$B$33,2) -> Forderungen a.L.u.L. | C12: 15000
A13: 2800 | B13: =VLOOKUP(A13,Kontenplan!$A$4:$B$33,2) -> Kreditinstitute/Bank | C13: 75000
A14: 2880 | B14: =VLOOKUP(A14,Kontenplan!$A$4:$B$33,2) -> Kasse | C14: 6000
C15: =SUM(C4:C14) -> 380000 | F15: =C15 -> 380000
A17: Aktiva | B17: 8010 Schlussbilanz | F17: Passiva
A18: 0500 | B18: =VLOOKUP(A18,Kontenplan!$A$4:$B$33,2) -> Grundstücke und Bauten | C18: =Hauptbuch!J4 -> 100000 | D18: 3000 | E18: =VLOOKUP(D18,Kontenplan!$A$4:$B$33,2) -> Eigenkapital | F18: =Hauptbuch!E84 -> 323000
A19: 0700 | B19: =VLOOKUP(A19,Kontenplan!$A$4:$B$33,2) -> Technische Anlagen und Maschinen | C19: =Hauptbuch!J7 -> 80000 | D19: 4400 | E19: =VLOOKUP(D19,Kontenplan!$A$4:$B$33,2) -> Verbindlichkeiten a.L.u.L. | F19: =Hauptbuch!E91 -> 20000
A20: 0800 | B20: =VLOOKUP(A20,Kontenplan!$A$4:$B$33,2) -> Beriebs- und Geschäftsausstattung | C20: =Hauptbuch!J10 -> 20000 | D20: 4800 | E20: =VLOOKUP(D20,Kontenplan!$A$4:$B$33,2) -> Umsatzsteuer | F20: =Hauptbuch!E98 -> 4000
A21: 2000 | B21: =VLOOKUP(A21,Kontenplan!$A$4:$B$33,2) -> Rohstoffe | C21: =Hauptbuch!J17 -> 40000
A22: 2020 | B22: =VLOOKUP(A22,Kontenplan!$A$4:$B$33,2) -> Hilfsstoffe | C22: =Hauptbuch!J29 -> 8000
A23: 2030 | B23: =VLOOKUP(A23,Kontenplan!$A$4:$B$33,2) -> Betriebsstoffe | C23: =Hauptbuch!J38 -> 3000
A24: 2100 | B24: =VLOOKUP(A24,Kontenplan!$A$4:$B$33,2) -> Unfertige Erzeugnisse | C24: =Grundbuch!D112 -> 0
A25: 2200 | B25: =VLOOKUP(A25,Kontenplan!$A$4:$B$33,2) -> Fertige Erzeugnisse | C25: =Grundbuch!D113 -> 0
A26: 2400 | B26: =VLOOKUP(A26,Kontenplan!$A$4:$B$33,2) -> Forderungen a.L.u.L. | C26: =Hauptbuch!J56 -> 15000
A27: 2800 | B27: =VLOOKUP(A27,Kontenplan!$A$4:$B$33,2) -> Kreditinstitute/Bank | C27: =Hauptbuch!J73 -> 75000
A28: 2880 | B28: =VLOOKUP(A28,Kontenplan!$A$4:$B$33,2) -> Kasse | C28: =Hauptbuch!J79 -> 6000
C29: =SUM(C18:C28) -> 347000 | F29: =SUM(F18:F28) -> 347000

Sheet Kontenplan
B1: Kontenplan
A3: Nr. | B3: Konto
A4: 0500 | B4: Grundstücke und Bauten
A5: 0700 | B5: Technische Anlagen und Maschinen
A6: 0800 | B6: Beriebs- und Geschäftsausstattung
A7: 2000 | B7: Rohstoffe
A8: 2001 | B8: Bezugskosten (Rohstoffe)
A9: 2002 | B9: Nachlässe (Rohstoffe)
A10: 2020 | B10: Hilfsstoffe
A11: 2022 | B11: Nachlässe (Hilfsstoffe)
A12: 2030 | B12: Betriebsstoffe
A13: 2032 | B13: Nachlässe (Betriebsstoffe)
A14: 2100 | B14: Unfertige Erzeugnisse
A15: 2200 | B15: Fertige Erzeugnisse
A16: 2400 | B16: Forderungen a.L.u.L.
A17: 2600 | B17: Vorsteuer
A18: 2800 | B18: Kreditinstitute/Bank
A19: 2880 | B19: Kasse
A20: 3000 | B20: Eigenkapital
A21: 4400 | B21: Verbindlichkeiten a.L.u.L.
A22: 4800 | B22: Umsatzsteuer
A23: 5000 | B23: Umsatzerlöse
A24: 5001 | B24: Erlösberichtigungen
A25: 5200 | B25: Bestandsveränderungen
A26: 6000 | B26: Aufwendungen für Rohstoffe
A27: 6020 | B27: Aufwendungen für Hilfsstoffe
A28: 6030 | B28: Aufwendungen für Betriebsstoffe
A29: 6200 | B29: Löhne
A30: 6520 | B30: Abschreibungen auf Sachanlagen
A31: 8000 | B31: Eröffnungsbilanz
A32: 8010 | B32: Schlussbilanz
A33: 8020 | B33: Gewinn und Verlust
